fUSD/lending_fUSD_20250325
["ID","MTS","AMOUNT","RATE_DAILY","PERIOD"]
[356658764,1742923866202,-500.0,0.00047123,120]
[356658765,1742923866219,-510.11680451,0.00047123,120]
[356658766,1742923866235,-518.44018132,0.00047123,120]
[356658767,1742923866251,-500.0,0.00047123,120]
[356658768,1742923866266,-500.0,0.00047123,120]
[356658769,1742923866282,-168.51740336,0.00047123,120]
[356658770,1742923866297,-511.68091931,0.00047123,120]
[356658771,1742923866312,-500.0,0.00047123,120]
[356658772,1742923866327,-500.0,0.00047123,120]
[356658773,1742923866342,-500.0,0.00047123,120]
[356658774,1742923866357,-521.06893825,0.00047123,120]
[356658775,1742923866372,-500.0,0.00047123,120]
[356658776,1742923866387,-511.28933212,0.00047123,120]
[356658777,1742923866403,-516.14746427,0.00047123,120]
[356658778,1742923866418,-550.20084099,0.00047123,20]
[356658779,1742923866433,-514.28340663,0.00047123,120]
[356658780,1742923866449,-605.9769169,0.00047123,120]
[356658781,1742923866464,-516.18925535,0.00047123,120]
[356658782,1742923866480,-500.0,0.00047123,120]
[356658783,1742923866496,-517.25652146,0.00047123,120]
[356658784,1742923866510,-511.60821335,0.00047123,120]
[356658785,1742923866624,-500.0,0.00047123,120]
[356658786,1742923866635,-500.0,0.00047123,120]
[356658787,1742923866645,-528.59651484,0.00047123,120]
[356658788,1742923866656,-196.18868906,0.00047123,120]
[356658789,1742923866667,-526.55128844,0.00047123,120]
[356658790,1742923866677,-500.0,0.00047123,120]
[356658791,1742923866686,-577.8464816,0.00047123,120]
[356658792,1742923866696,-500.0,0.00047123,120]
[356658793,1742923866705,-1502.30600692,0.00047123,120]
[356658794,1742923866715,-500.0,0.00047123,120]
[356658795,1742923866724,-526.92693739,0.00047123,120]
[356658796,1742923866733,-500.0,0.00047123,120]
[356658797,1742923866743,-574.91822853,0.00047123,120]
[356658798,1742923866752,-526.20399295,0.00047123,120]
[356658799,1742923866762,-615.92045592,0.00047123,120]
[356658800,1742923866771,-535.56050997,0.00047123,120]
[356658801,1742923866780,-500.0,0.00047123,120]
[356658802,1742923866791,-500.0,0.00047123,120]
[356658803,1742923866800,-500.0,0.00047123,120]
[356658804,1742923866810,-171.31303375,0.00047123,120]
[356658805,1742923866819,-167.60788705,0.00047123,120]
[356658806,1742923866828,-3387.1,0.00047123,120]
[356658807,1742923866838,-554.95287469,0.00047123,120]
[356658808,1742923866847,-500.0,0.00047123,120]
[356658809,1742923866858,-500.0,0.00047123,2]
[356658810,1742923866867,-500.0,0.00047123,2]
[356658811,1742923866877,-530.38097843,0.00047123,120]
[356658812,1742923866887,-242.98253314,0.00047123,120]
[356658813,1742923866896,-500.0,0.00047123,2]
[356658814,1742923866906,-500.0,0.00047123,7]
[356658815,1742923866915,-500.0,0.00047123,120]
[356658816,1742923866925,-500.0,0.00047123,30]
[356658817,1742923866935,-622.74,0.00047123,120]
[356658818,1742923866944,-500.0,0.00047123,120]
[356658819,1742923866954,-500.0,0.00047123,120]
[356658820,1742923866963,-500.0,0.00047123,2]
[356658821,1742923866973,-500.0,0.00047123,120]
[356658822,1742923866983,-500.0,0.00047123,120]
[356658823,1742923866992,-500.0,0.00047123,120]
[356658824,1742923867002,-491.89412192,0.00047123,120]
[356658825,1742923867012,-858.34,0.00047123,120]
[356658826,1742923867022,-588.13,0.00047123,120]
[356658827,1742923867031,-500.0,0.00047123,120]
[356658828,1742923867040,-500.0,0.00047123,120]
[356658829,1742923867049,-780.37,0.00047123,120]
[356658830,1742923867059,-500.0,0.00047123,120]
[356658831,1742923867069,-500.0,0.00047123,120]
[356658832,1742923867080,-500.0,0.00047123,120]
[356658833,1742923867089,-500.0,0.00047123,120]
[356658834,1742923867098,-500.0,0.00047123,120]
[356658835,1742923867110,-500.0,0.00047123,120]
[356658836,1742923867120,-500.0,0.00047123,120]
[356658837,1742923867130,-500.0,0.00047123,120]
[356658838,1742923867140,-500.0,0.00047123,120]
[356658839,1742923867151,-500.0,0.00047123,120]
[356658840,1742923867161,-500.0,0.00047123,120]
[356658841,1742923867171,-500.0,0.00047123,120]
[356658842,1742923867180,-1176.11,0.00047123,120]
[356658843,1742923867192,-500.0,0.00047123,120]
[356658844,1742923867201,-500.0,0.00047123,120]
[356658845,1742923867211,-500.0,0.00047123,120]
[356658846,1742923867230,-592.13569886,0.00047123,120]
[356658847,1742923867241,-500.0,0.00047123,120]
[356658848,1742923867251,-500.0,0.00047123,120]
[356658849,1742923867260,-371.30432609,0.00047123,120]
[356658850,1742923867269,-500.0,0.00047123,120]
[356658851,1742923867279,-9068.11,0.00047123,2]
[356658852,1742923867290,-357.134768,0.00047123,120]
[356658853,1742923867300,-1500.0,0.00047123,120]
[356658854,1742923867311,-500.0,0.00047123,120]
[356658855,1742923867321,-3820.03,0.00047123,120]
[356658856,1742923867331,-611.21101182,0.00047123,120]
[356658857,1742923867341,-500.0,0.00047123,120]
[356658858,1742923867351,-500.0,0.00047123,120]
[356658859,1742923867362,-408.561477,0.00047123,120]
[356658860,1742923867373,-500.0,0.00047123,120]
[356658861,1742923867384,-500.0,0.00047123,120]
[356658862,1742923867394,-500.0,0.00047123,120]
[356658863,1742923867404,-500.0,0.00047123,120]
[356658864,1742923867414,-500.0,0.00047123,120]
[356658865,1742923867424,-500.0,0.00047123,7]
[356658866,1742923867434,-500.0,0.00047123,120]
[356658867,1742923867444,-320.84269776,0.00047123,120]
[356658868,1742923867454,-804.33,0.00047123,120]
[356658869,1742923867464,-500.0,0.00047123,120]
[356658870,1742923867475,-500.0,0.00047123,120]
[356658871,1742923867485,-500.0,0.00047123,120]
[356658872,1742923867495,-469.92412633,0.00047123,120]
[356658873,1742923867505,-1965.89,0.00047123,120]
[356658874,1742923867515,-500.0,0.00047123,120]
[356658875,1742923867525,-500.0,0.00047123,120]
[356658876,1742923867535,-500.0,0.00047123,100]
[356658877,1742923867545,-500.0,0.00047123,120]
[356658878,1742923867555,-500.0,0.00047123,120]
[356658879,1742923867565,-1021.37,0.00047123,120]
[356658880,1742923867575,-381.95883645,0.00047123,120]
[356658881,1742923867584,-524.5554419,0.00047123,120]
[356658882,1742923867594,-177.29447688,0.00047123,120]
[356658883,1742923867604,-162.51942334,0.00047123,120]
[356658884,1742923867614,-409.75143304,0.00047123,120]
[356658885,1742923867625,-500.0,0.00047123,120]
[356658886,1742923867635,-500.0,0.00047123,120]
[356658887,1742923867645,-500.0,0.00047123,120]
[356658888,1742923867655,-500.0,0.00047123,120]
[356658889,1742923867665,-500.0,0.00047123,120]
[356658890,1742923867675,-500.0,0.00047123,120]
[356658891,1742923867685,-500.0,0.00047123,120]
[356658892,1742923867695,-398.59863722,0.00047123,120]
[356658893,1742923867704,-711.82,0.00047123,120]
[356658894,1742923867715,-500.0,0.00047123,120]
[356658895,1742923867724,-500.0,0.00047123,120]
[356658896,1742923867734,-500.0,0.00047123,120]
[356658897,1742923867743,-500.0,0.00047123,120]
[356658898,1742923867753,-500.0,0.00047123,120]
[356658899,1742923867763,-664.54,0.00047123,120]
[356658900,1742923867773,-500.0,0.00047123,120]
[356658901,1742923867782,-500.0,0.00047123,120]
[356658902,1742923867791,-500.0,0.00047123,120]
[356658903,1742923867801,-500.0,0.00047123,120]
[356658904,1742923867811,-500.0,0.00047123,120]
[356658905,1742923867899,-500.0,0.00047123,120]
[356658906,1742923867915,-500.0,0.00047123,120]
[356658907,1742923867925,-500.0,0.00047123,120]
[356658908,1742923867934,-500.0,0.00047123,120]
[356658909,1742923867943,-500.0,0.00047123,120]
[356658910,1742923867953,-500.0,0.00047123,120]
[356658911,1742923867963,-1427.99,0.00047123,120]
[356658912,1742923867972,-500.0,0.00047123,120]
[356658913,1742923867982,-645.99758172,0.00047123,120]
[356658914,1742923867991,-500.0,0.00047123,120]
[356658915,1742923868000,-500.0,0.00047123,120]
[356658916,1742923868010,-500.0,0.00047123,120]
[356658917,1742923868019,-500.0,0.00047123,120]
[356658918,1742923868029,-500.0,0.00047123,120]
[356658919,1742923868038,-500.0,0.00047123,120]
[356658920,1742923868047,-500.0,0.00047123,120]
[356658921,1742923868057,-500.0,0.00047123,120]
[356658922,1742923868066,-500.0,0.00047123,120]
[356658923,1742923868075,-500.0,0.00047123,120]
[356658924,1742923868085,-943.09,0.00047123,120]
[356658925,1742923868094,-600.14,0.00047123,120]
[356658926,1742923868103,-500.0,0.00047123,120]
[356658927,1742923868114,-500.0,0.00047123,120]
[356658928,1742923868124,-500.0,0.00047123,120]
[356658929,1742923868134,-500.0,0.00047123,120]
[356658930,1742923868144,-1013.19,0.00047123,30]
[356658931,1742923868155,-500.0,0.00047123,120]
[356658932,1742923868165,-561.94328824,0.00047123,120]
[356658933,1742923868174,-500.0,0.00047123,120]
[356658934,1742923868184,-500.0,0.00047123,120]
[356658935,1742923868194,-500.0,0.00047123,120]
[356658936,1742923868205,-500.0,0.00047123,120]
[356658937,1742923868215,-500.0,0.00047123,120]
[356658938,1742923868225,-353.90624031,0.00047123,120]
[356658939,1742923868235,-542.01464332,0.00047123,120]
[356658940,1742923868245,-500.0,0.00047123,120]
[356658941,1742923868255,-500.0,0.00047123,120]
[356658942,1742923868264,-4431.56,0.00047123,120]
[356658943,1742923868274,-419.41267287,0.00047123,120]
[356658944,1742923868283,-500.0,0.00047123,120]
[356658945,1742923868294,-158.14381697,0.00047123,120]
[356658946,1742923868303,-500.0,0.00047123,120]
[356658947,1742923868313,-500.0,0.00047123,120]
[356658948,1742923868322,-500.0,0.00047123,120]
[356658949,1742923868332,-620.7,0.00047123,120]
[356658950,1742923868341,-500.0,0.00047123,120]
[356658951,1742923868350,-500.0,0.00047123,120]
[356658952,1742923868359,-500.0,0.00047123,120]
[356658953,1742923868369,-500.0,0.00047123,120]
[356658954,1742923868379,-500.0,0.00047123,120]
[356658955,1742923868388,-500.0,0.00047123,120]
[356658956,1742923868397,-500.0,0.00047123,120]
[356658957,1742923868406,-500.0,0.00047123,120]
[356658958,1742923868416,-512.86604496,0.00047123,120]
[356658959,1742923868426,-500.0,0.00047123,120]
[356658960,1742923868435,-500.0,0.00047123,120]
[356658961,1742923868445,-500.0,0.00047123,120]
[356658962,1742923868454,-303.00818272,0.00047123,120]
[356658963,1742923868463,-500.0,0.00047123,120]
[356658964,1742923868472,-500.0,0.00047123,120]
[356658965,1742923868481,-500.0,0.00047123,120]
[356658966,1742923868491,-500.0,0.00047123,120]
[356658967,1742923868501,-500.0,0.00047123,120]
[356658968,1742923868510,-500.0,0.00047123,120]
[356658969,1742923868520,-500.0,0.00047123,120]
[356658970,1742923868530,-500.0,0.00047123,120]
[356658971,1742923868540,-500.0,0.00047123,120]
[356658972,1742923868550,-500.0,0.00047123,120]
[356658973,1742923868559,-500.0,0.00047123,120]
[356658974,1742923868568,-1975.49,0.00047123,120]
[356658975,1742923868579,-500.0,0.00047123,120]
[356658976,1742923868588,-500.0,0.00047123,120]
[356658977,1742923868599,-624.83169522,0.00047123,120]
[356658978,1742923868608,-500.0,0.00047123,120]
[356658979,1742923868618,-637.33105941,0.00047123,120]
[356658980,1742923868627,-1544.85,0.00047123,120]
[356658981,1742923868636,-500.0,0.00047123,120]
[356658982,1742923868645,-500.0,0.00047123,120]
[356658983,1742923868654,-500.0,0.00047123,120]
[356658984,1742923868663,-500.0,0.00047123,120]
[356658985,1742923868673,-1400.0,0.00047181,120]
[356658986,1742923868682,-2241.293999,0.000472,60]
[356658987,1742923868691,-229.79,0.00047206,2]
[356658988,1742923868701,-892.0,0.0004726,14]
[356658989,1742923868711,-1247.0,0.0004726,14]
[356658990,1742923868720,-200.0,0.00047268,120]
[356658991,1742923868729,-12073.66,0.000473,2]
[356658992,1742923868738,-172.58,0.000473,2]
[356658993,1742923868748,-6405.35,0.000473,2]
[356658994,1742923868757,-892.0,0.00047397,14]
[356658995,1742923868767,-1247.0,0.00047397,14]
[356658996,1742923868776,-8500.0,0.00047397,16]
[356658997,1742923868785,-8500.0,0.00047397,16]
[356658998,1742923868794,-8500.0,0.00047397,16]
[356658999,1742923868804,-8500.0,0.00047397,16]
[356659000,1742923868813,-4952.58341756,0.00047397,16]
[356659001,1742923868823,-293.31522779,0.00047397,120]
[356659002,1742923868832,-193.27516734,0.00047397,120]
[356659003,1742923868841,-500.0,0.00047397,120]
[356659004,1742923868851,-500.0,0.00047397,120]
[356659005,1742923868860,-500.0,0.00047397,120]
[356659006,1742923868869,-500.0,0.00047397,120]
[356659007,1742923868878,-681.27,0.00047397,120]
[356659008,1742923868887,-500.0,0.00047397,120]
[356659009,1742923868897,-284.29935197,0.00047397,120]
[356659010,1742923868906,-500.0,0.00047397,120]
[356659011,1742923868916,-500.0,0.00047397,120]
[356659012,1742923868925,-500.0,0.00047397,120]
[356659013,1742923868935,-227.0949297,0.00047397,120]
[356659014,1742923868945,-488.69694138,0.00047397,120]
[356659015,1742923868954,-1000.0,0.00047397,120]
[356659016,1742923869029,-593.53,0.00047397,120]
[356659017,1742923869039,-500.0,0.00047397,120]
[356659018,1742923869049,-632.48927146,0.00047397,120]
[356659019,1742923869058,-500.0,0.00047397,120]
[356659020,1742923869068,-500.0,0.00047397,120]
[356659021,1742923869077,-500.0,0.00047397,120]
[356659022,1742923869086,-500.0,0.00047397,120]
[356659023,1742923869096,-500.0,0.00047397,120]
[356659024,1742923869106,-500.0,0.00047397,120]
[356659025,1742923869118,-164.64766341,0.00047397,120]
[356659026,1742923869127,-584.79839212,0.00047397,120]
[356659027,1742923869137,-514.89081675,0.00047397,120]
[356659028,1742923869147,-386.49767071,0.00047397,120]
[356659029,1742923869157,-287.78253685,0.00047397,120]
[356659030,1742923869167,-165.66298113,0.00047397,120]
[356659031,1742923869176,-500.0,0.00047397,120]
[356659032,1742923869187,-500.0,0.00047397,120]
[356659033,1742923869196,-500.0,0.00047397,120]
[356659034,1742923869206,-251.65027842,0.00047397,120]
[356659035,1742923869215,-620.73809854,0.00047397,120]
[356659036,1742923869224,-636.15331674,0.00047397,120]
[356659037,1742923869233,-500.0,0.00047397,120]
[356659038,1742923869242,-513.82454062,0.00047397,120]
[356659039,1742923869252,-500.0,0.00047397,120]
[356659040,1742923869261,-500.0,0.00047397,120]
[356659041,1742923869271,-647.90792439,0.00047397,120]
[356659042,1742923869280,-500.0,0.00047397,120]
[356659043,1742923869290,-3387.1,0.00047397,120]
[356659044,1742923869299,-500.0,0.00047397,120]
[356659045,1742923869308,-500.0,0.00047397,2]
[356659046,1742923869318,-500.0,0.00047397,2]
[356659047,1742923869327,-500.0,0.00047397,2]
[356659048,1742923869337,-500.0,0.00047397,7]
[356659049,1742923869346,-500.0,0.00047397,120]
[356659050,1742923869355,-500.0,0.00047397,30]
[356659051,1742923869365,-622.74,0.00047397,120]
[356659052,1742923869374,-500.0,0.00047397,120]
[356659053,1742923869385,-500.0,0.00047397,120]
[356659054,1742923869395,-500.0,0.00047397,2]
[356659055,1742923869406,-500.0,0.00047397,120]
[356659056,1742923869416,-500.0,0.00047397,120]
[356659057,1742923869426,-500.0,0.00047397,120]
[356659058,1742923869435,-858.34,0.00047397,120]
[356659059,1742923869444,-588.13,0.00047397,120]
[356659060,1742923869454,-500.0,0.00047397,120]
[356659061,1742923869463,-500.0,0.00047397,120]
[356659062,1742923869472,-780.37,0.00047397,120]
[356659063,1742923869482,-500.0,0.00047397,120]
[356659064,1742923869491,-500.0,0.00047397,120]
[356659065,1742923869500,-500.0,0.00047397,120]
[356659066,1742923869509,-500.0,0.00047397,120]
[356659067,1742923869518,-542.47665931,0.00047397,120]
[356659068,1742923869528,-500.0,0.00047397,120]
[356659069,1742923869537,-500.0,0.00047397,120]
[356659070,1742923869546,-500.0,0.00047397,120]
[356659071,1742923869555,-254.01272326,0.00047397,120]
[356659072,1742923869564,-500.0,0.00047397,120]
[356659073,1742923869573,-644.48720911,0.00047397,120]
[356659074,1742923869583,-1176.11,0.00047397,120]
[356659075,1742923869591,-500.0,0.00047397,120]
[356659076,1742923869601,-500.0,0.00047397,120]
[356659077,1742923869611,-500.0,0.00047397,120]
[356659078,1742923869620,-500.0,0.00047397,120]
[356659079,1742923869631,-402.83311189,0.00047397,120]
[356659080,1742923869639,-500.0,0.00047397,120]
[356659081,1742923869649,-9068.11,0.00047397,2]
[356659082,1742923869660,-357.134768,0.00047397,120]
[356659083,1742923869669,-1500.0,0.00047397,120]
[356659084,1742923869679,-500.0,0.00047397,120]
[356659085,1742923869688,-3820.03,0.00047397,120]
[356659086,1742923869698,-425.56621099,0.00047397,120]
[356659087,1742923869707,-500.0,0.00047397,120]
[356659088,1742923869717,-408.561477,0.00047397,120]
[356659089,1742923869727,-500.0,0.00047397,120]
[356659090,1742923869736,-500.0,0.00047397,120]
[356659091,1742923869745,-500.0,0.00047397,120]
[356659092,1742923869754,-500.0,0.00047397,120]
[356659093,1742923869764,-500.0,0.00047397,120]
[356659094,1742923869773,-500.0,0.00047397,7]
[356659095,1742923869783,-500.0,0.00047397,120]
[356659096,1742923869792,-804.33,0.00047397,120]
[356659097,1742923869802,-500.0,0.00047397,120]
[356659098,1742923869811,-500.0,0.00047397,120]
[356659099,1742923869821,-500.0,0.00047397,120]
[356659100,1742923869831,-1965.89,0.00047397,120]
[356659101,1742923869840,-500.0,0.00047397,120]
[356659102,1742923869849,-186.85839635,0.00047397,120]
[356659103,1742923869859,-500.0,0.00047397,100]
[356659104,1742923869868,-500.0,0.00047397,120]
[356659105,1742923869878,-500.0,0.00047397,120]
[356659106,1742923869888,-1021.37,0.00047397,120]
[356659107,1742923869898,-208.6377582,0.00047397,120]
[356659108,1742923869907,-500.0,0.00047397,120]
[356659109,1742923869917,-500.0,0.00047397,120]
[356659110,1742923869927,-500.0,0.00047397,120]
[356659111,1742923869936,-500.0,0.00047397,120]
[356659112,1742923869945,-500.0,0.00047397,120]
[356659113,1742923869954,-500.0,0.00047397,120]
[356659114,1742923869964,-711.82,0.00047397,120]
[356659115,1742923869974,-500.0,0.00047397,120]
[356659116,1742923869984,-500.0,0.00047397,120]
[356659117,1742923869993,-500.0,0.00047397,120]
[356659118,1742923870003,-500.0,0.00047397,120]
[356659119,1742923870013,-312.8332478,0.00047397,120]
[356659120,1742923870024,-664.54,0.00047397,120]
[356659121,1742923870034,-500.0,0.00047397,120]
[356659122,1742923870044,-500.0,0.00047397,120]
[356659123,1742923870054,-500.0,0.00047397,120]
[356659124,1742923870064,-398.99157211,0.00047397,120]
[356659125,1742923870074,-500.0,0.00047397,120]
[356659126,1742923870083,-500.0,0.00047397,120]
[356659127,1742923870093,-500.0,0.00047397,120]
[356659128,1742923870103,-500.0,0.00047397,120]
[356659129,1742923870117,-500.0,0.00047397,120]
[356659130,1742923870129,-500.0,0.00047397,120]
[356659131,1742923870138,-500.0,0.00047397,120]
[356659132,1742923870146,-1427.99,0.00047397,120]
[356659133,1742923870157,-500.0,0.00047397,120]
[356659134,1742923870167,-613.9429774,0.00047397,120]
[356659135,1742923870176,-500.0,0.00047397,120]
[356659136,1742923870186,-645.22636819,0.00047397,120]
[356659137,1742923870195,-500.0,0.00047397,120]
[356659138,1742923870204,-500.0,0.00047397,120]
[356659139,1742923870214,-500.0,0.00047397,120]
[356659140,1742923870224,-500.0,0.00047397,120]
[356659141,1742923870234,-500.0,0.00047397,120]
[356659142,1742923870243,-500.0,0.00047397,120]
[356659143,1742923870252,-500.0,0.00047397,120]
[356659144,1742923870263,-943.09,0.00047397,120]
[356659145,1742923870272,-600.14,0.00047397,120]
[356659146,1742923870282,-500.0,0.00047397,120]
[356659147,1742923870291,-532.62108837,0.00047397,120]
[356659148,1742923870301,-500.0,0.00047397,120]
[356659149,1742923870311,-500.0,0.00047397,120]
[356659150,1742923870320,-1013.19,0.00047397,30]
[356659151,1742923870330,-500.0,0.00047397,120]
[356659152,1742923870339,-500.0,0.00047397,120]
[356659153,1742923870349,-500.0,0.00047397,120]
[356659154,1742923870358,-500.0,0.00047397,120]
[356659155,1742923870370,-500.0,0.00047397,120]
[356659156,1742923870381,-500.0,0.00047397,120]
[356659157,1742923870391,-500.0,0.00047397,120]
[356659158,1742923870402,-500.0,0.00047397,120]
[356659159,1742923870411,-4431.56,0.00047397,120]
[356659160,1742923870420,-329.84758828,0.00047397,120]
[356659161,1742923870430,-500.0,0.00047397,120]
[356659162,1742923870440,-500.0,0.00047397,120]
[356659163,1742923870450,-500.0,0.00047397,120]
[356659164,1742923870460,-620.7,0.00047397,120]
[356659165,1742923870470,-500.0,0.00047397,120]
[356659166,1742923870479,-500.0,0.00047397,120]
[356659167,1742923870489,-500.0,0.00047397,120]
[356659168,1742923870499,-564.8534513,0.00047397,120]
[356659169,1742923870508,-500.0,0.00047397,120]
[356659170,1742923870518,-500.0,0.00047397,120]
[356659171,1742923870527,-460.9802267,0.00047397,120]
[356659172,1742923870537,-500.0,0.00047397,120]
[356659173,1742923870547,-500.0,0.00047397,120]
[356659174,1742923870557,-500.0,0.00047397,120]
[356659175,1742923870567,-500.0,0.00047397,120]
[356659176,1742923870577,-500.0,0.00047397,120]
[356659177,1742923870586,-500.0,0.00047397,120]
[356659178,1742923870596,-500.0,0.00047397,120]
[356659179,1742923870606,-500.0,0.00047397,120]
[356659180,1742923870615,-602.50848922,0.00047397,120]
[356659181,1742923870625,-500.0,0.00047397,120]
[356659182,1742923870636,-500.0,0.00047397,120]
[356659183,1742923870647,-500.0,0.00047397,120]
[356659184,1742923870656,-500.0,0.00047397,120]
[356659185,1742923870666,-500.0,0.00047397,120]
[356659186,1742923870676,-500.0,0.00047397,120]
[356659187,1742923870686,-1975.49,0.00047397,120]
[356659188,1742923870696,-500.0,0.00047397,120]
[356659189,1742923870705,-546.5506981,0.00047397,120]
[356659190,1742923870715,-500.0,0.00047397,120]
[356659191,1742923870724,-1544.85,0.00047397,120]
[356659192,1742923870734,-500.0,0.00047397,120]
[356659193,1742923870743,-500.0,0.00047397,120]
[356659194,1742923870753,-500.0,0.00047397,120]
[356659195,1742923870763,-500.0,0.00047397,120]
[356659196,1742923870773,-500.0,0.00047455,120]
[356659197,1742923870783,-1000.0,0.00047489,120]
[356659198,1742923870792,-892.0,0.00047534,14]
[356659199,1742923870802,-1247.0,0.00047534,14]
[356659200,1742923870812,-927.0,0.00047579,30]
[356659201,1742923870821,-211.47,0.000476,2]
[356659202,1742923870831,-12073.66,0.000476,2]
[356659203,1742923870840,-172.58,0.000476,2]
[356659204,1742923870849,-6405.35,0.000476,2]
[356659205,1742923870859,-607.55416244,0.00047617,28]
[356659206,1742923870869,-201.86162449,0.0004765,11]
[356659207,1742923870879,-892.0,0.00047671,14]
[356659208,1742923870890,-1247.0,0.00047671,14]
[356659209,1742923870899,-500.0,0.00047671,120]
[356659210,1742923870909,-500.0,0.00047671,120]
[356659211,1742923870919,-167.46358272,0.00047671,120]
[356659212,1742923870929,-500.0,0.00047671,120]
[356659213,1742923870939,-681.27,0.00047671,120]
[356659214,1742923870949,-500.0,0.00047671,120]
[356659215,1742923870959,-500.0,0.00047671,120]
[356659216,1742923870969,-500.0,0.00047671,120]
[356659217,1742923870979,-500.0,0.00047671,120]
[356659218,1742923870989,-1054.14451201,0.00047671,120]
[356659219,1742923870999,-593.53,0.00047671,120]
[356659220,1742923871009,-275.12199003,0.00047671,120]
[356659221,1742923871019,-537.0386793,0.00047671,120]
[356659222,1742923871028,-500.0,0.00047671,120]
[356659223,1742923871037,-381.97060467,0.00047671,120]
[356659224,1742923871047,-500.0,0.00047671,120]
[356659225,1742923871056,-454.48643867,0.00047671,120]
[356659226,1742923871066,-500.0,0.00047671,120]
[356659227,1742923871076,-531.34289217,0.00047671,120]
[356659228,1742923871086,-632.49613401,0.00047671,120]
[356659229,1742923871189,-500.0,0.00047671,120]
[356659230,1742923871200,-595.81244053,0.00047671,120]
[356659231,1742923871210,-500.0,0.00047671,120]
[356659232,1742923871219,-500.0,0.00047671,120]
[356659233,1742923871228,-536.51119816,0.00047671,120]
[356659234,1742923871238,-3387.1,0.00047671,120]
[356659235,1742923871247,-244.73872614,0.00047671,120]
[356659236,1742923871257,-500.0,0.00047671,2]
[356659237,1742923871267,-500.0,0.00047671,2]
[356659238,1742923871276,-500.0,0.00047671,2]
[356659239,1742923871286,-500.0,0.00047671,7]
[356659240,1742923871296,-500.0,0.00047671,120]
[356659241,1742923871305,-500.18716694,0.00047671,30]
[356659242,1742923871315,-622.74,0.00047671,120]
[356659243,1742923871324,-560.0,0.00047671,120]
[356659244,1742923871334,-500.0,0.00047671,120]
[356659245,1742923871343,-500.0,0.00047671,2]
[356659246,1742923871353,-500.0,0.00047671,120]
[356659247,1742923871362,-500.0,0.00047671,120]
[356659248,1742923871372,-500.0,0.00047671,120]
[356659249,1742923871383,-858.34,0.00047671,120]
[356659250,1742923871393,-588.13,0.00047671,120]
[356659251,1742923871403,-500.0,0.00047671,120]
[356659252,1742923871412,-500.0,0.00047671,120]
[356659253,1742923871421,-780.37,0.00047671,120]
[356659254,1742923871431,-500.0,0.00047671,120]
[356659255,1742923871441,-500.0,0.00047671,120]
[356659256,1742923871451,-500.0,0.00047671,120]
[356659257,1742923871462,-500.0,0.00047671,120]
[356659258,1742923871472,-500.0,0.00047671,120]
[356659259,1742923871482,-500.0,0.00047671,120]
[356659260,1742923871492,-500.0,0.00047671,120]
[356659261,1742923871502,-500.0,0.00047671,120]
[356659262,1742923871511,-1176.11,0.00047671,120]
[356659263,1742923871521,-500.0,0.00047671,120]